fUST/lending_fUST_20250704
["ID","MTS","AMOUNT","RATE_DAILY","PERIOD"]
[369365728,1751560239342,-460.0,0.00016438,2]
[369365730,1751560239351,-502.38,0.00016438,2]
[369365732,1751560239360,-460.0,0.00016438,2]
[369365734,1751560239371,-460.0,0.00016438,2]
[369365736,1751560239380,-417.57,0.00016438,2]
[369365738,1751560239390,-460.0,0.00016438,2]
[369365740,1751560239401,-460.0,0.00016438,2]
[369365742,1751560239410,-460.0,0.00016438,2]
[369365744,1751560239421,-346.26,0.00016438,2]
[369365746,1751560239431,-460.0,0.00016438,2]
[369365748,1751560239441,-460.0,0.00016438,2]
[369365750,1751560239450,-460.0,0.00016438,2]
[369365752,1751560239460,-460.0,0.00016438,2]
[369365754,1751560239471,-460.0,0.00016438,2]
[369365756,1751560239481,-460.0,0.00016438,2]
[369365758,1751560239490,-460.0,0.00016438,2]
[369365760,1751560239500,-460.0,0.00016438,2]
[369365762,1751560239509,-460.0,0.00016438,2]
[369365764,1751560239519,-460.0,0.00016438,2]
[369365766,1751560239529,-460.0,0.00016438,2]
[369365768,1751560239538,-460.0,0.00016438,2]
[369365770,1751560239548,-484.46,0.00016438,2]
[369365772,1751560239557,-460.0,0.00016438,2]
[369365774,1751560239566,-423.36,0.00016438,2]
[369365776,1751560239576,-460.0,0.00016438,2]
[369365778,1751560239585,-460.0,0.00016438,2]
[369365780,1751560239595,-460.0,0.00016438,2]
[369365782,1751560239605,-460.0,0.00016438,2]
[369365785,1751560239616,-156.30270558,0.00016438,2]
[369365787,1751560239627,-460.0,0.00016438,2]
[369365789,1751560239637,-460.0,0.00016438,2]
[369365791,1751560239647,-460.0,0.00016438,2]
[369365793,1751560239656,-460.0,0.00016438,2]
[369365795,1751560239667,-460.0,0.00016438,2]
[369365797,1751560239676,-460.0,0.00016438,2]
[369365799,1751560239687,-460.0,0.00016438,2]
[369365801,1751560239696,-460.0,0.00016438,2]
[369365803,1751560239706,-460.0,0.00016438,2]
[369365805,1751560239720,-460.0,0.00016438,2]
[369365807,1751560239730,-460.0,0.00016712,2]
[369365809,1751560239739,-460.0,0.00016712,2]
[369365811,1751560239749,-458.92999939,0.00016712,2]
[369365813,1751560239758,-460.0,0.00016712,2]
[369365815,1751560239768,-460.0,0.00016712,2]
[369365817,1751560239778,-460.0,0.00016712,2]
[369365819,1751560239787,-460.0,0.00016712,2]
[369365821,1751560239797,-460.0,0.00016712,2]
[369365823,1751560239806,-502.38,0.00016712,2]
[369365825,1751560239816,-460.0,0.00016712,2]
[369365827,1751560239826,-460.0,0.00016712,2]
[369365829,1751560239836,-460.0,0.00016712,2]
[369365831,1751560239845,-460.0,0.00016712,2]
[369365833,1751560239854,-460.0,0.00016712,2]
[369365835,1751560239864,-460.0,0.00016712,2]
[369365837,1751560239874,-460.0,0.00016712,2]
[369365839,1751560239883,-460.0,0.00016712,2]
[369365841,1751560239892,-467.10298739,0.00016712,2]
[369365843,1751560239902,-460.0,0.00016712,2]
[369365845,1751560239911,-460.0,0.00016712,2]
[369365848,1751560239921,-460.0,0.00016712,2]
[369365849,1751560239930,-460.0,0.00016712,2]
[369365852,1751560239939,-460.0,0.00016712,2]
[369365854,1751560239950,-460.0,0.00016712,2]
[369365856,1751560239959,-484.46,0.00016712,2]
[369365858,1751560239979,-460.0,0.00016712,2]
[369365860,1751560239988,-460.0,0.00016712,2]
[369365862,1751560239998,-460.0,0.00016712,2]
[369365864,1751560240008,-460.0,0.00016712,2]
[369365866,1751560240020,-460.0,0.00016712,2]
[369365868,1751560240029,-460.0,0.00016712,2]
[369365870,1751560240039,-460.0,0.00016712,2]
[369365872,1751560240048,-426.58750664,0.00016712,2]
[369365874,1751560240057,-460.0,0.00016712,2]
[369365876,1751560240067,-460.0,0.00016712,2]
[369365878,1751560240076,-460.0,0.00016986,2]
[369365880,1751560240086,-460.0,0.00016986,2]
[369365882,1751560240096,-460.0,0.00016986,2]
[369365884,1751560240106,-460.0,0.00016986,2]
[369365886,1751560240116,-502.38,0.00016986,2]
[369365888,1751560240125,-460.0,0.00016986,2]
[369365890,1751560240135,-460.0,0.00016986,2]
[369365892,1751560240144,-460.0,0.00016986,2]
[369365894,1751560240153,-460.0,0.00016986,2]
[369365896,1751560240163,-460.0,0.00016986,2]
[369365898,1751560240172,-460.0,0.00016986,2]
[369365900,1751560240183,-460.0,0.00016986,2]
[369365902,1751560240192,-178.7971137,0.00016986,2]
[369365905,1751560240201,-460.0,0.00016986,2]
[369365907,1751560240211,-460.0,0.00016986,2]
[369365908,1751560240223,-460.0,0.00016986,2]
[369365911,1751560240232,-460.0,0.00016986,2]
[369365913,1751560240242,-484.46,0.00016986,2]
[369365915,1751560240251,-460.0,0.00016986,2]
[369365918,1751560240260,-460.0,0.00016986,2]
[369365921,1751560240269,-585.38257702,0.00016986,2]
[369365923,1751560240279,-504.45,0.00016986,2]
[369365926,1751560240288,-460.0,0.00016986,2]
[369365929,1751560240297,-460.0,0.00016986,2]
[369365932,1751560240307,-460.0,0.00016986,2]
[369365935,1751560240316,-460.0,0.00016986,2]
[369365938,1751560240325,-167.0,0.00017195,2]
[369365941,1751560240335,-460.0,0.0001726,2]
[369365944,1751560240344,-460.0,0.0001726,2]
[369365947,1751560240353,-163.2,0.0001726,2]
[369365950,1751560240363,-502.38,0.0001726,2]
[369365953,1751560240372,-460.0,0.0001726,2]
[369365956,1751560240382,-460.0,0.0001726,2]
[369365959,1751560240391,-460.0,0.0001726,2]
[369365962,1751560240401,-460.0,0.0001726,2]
[369365965,1751560240410,-460.0,0.0001726,2]
[369365967,1751560240419,-460.0,0.0001726,2]
[369365969,1751560240429,-563.87555245,0.0001726,2]
[369365971,1751560240439,-460.0,0.0001726,2]
[369365973,1751560240448,-484.46,0.0001726,2]
[369365976,1751560240458,-460.0,0.0001726,2]
[369365979,1751560240471,-460.0,0.0001726,2]
[369365982,1751560240480,-460.0,0.0001726,2]
[369365985,1751560240490,-460.0,0.0001726,2]
[369365988,1751560240500,-460.0,0.0001726,2]
[369365991,1751560240510,-460.0,0.0001726,2]
[369365994,1751560240519,-726.36,0.000175,2]
[369365997,1751560240529,-200.20959778,0.00017516,2]
[369366000,1751560240539,-460.0,0.00017534,2]
[369366003,1751560240549,-460.0,0.00017534,2]
[369366006,1751560240558,-460.0,0.00017534,2]
[369366009,1751560240568,-502.38,0.00017534,2]
[369366012,1751560240577,-460.0,0.00017534,2]
[369366015,1751560240587,-460.0,0.00017534,2]
[369366018,1751560240598,-460.0,0.00017534,2]
[369366021,1751560240608,-437.02579294,0.00017534,2]
[369366024,1751560240618,-460.0,0.00017534,2]
[369366027,1751560240629,-460.0,0.00017534,2]
[369366030,1751560240639,-484.46,0.00017534,2]
[369366033,1751560240648,-460.0,0.00017534,2]
[369366036,1751560240658,-460.0,0.00017534,2]
[369366039,1751560240667,-460.0,0.00017534,2]
[369366042,1751560240677,-278.21923303,0.00017534,2]
[369366045,1751560240687,-460.0,0.00017534,2]
[369366048,1751560240696,-460.0,0.00017808,2]
[369366052,1751560240707,-460.0,0.00017808,2]
[369366055,1751560240719,-460.0,0.00017808,2]
[369366057,1751560240728,-502.38,0.00017808,2]
[369366059,1751560240738,-460.0,0.00017808,2]
[369366061,1751560240747,-460.0,0.00017808,2]
[369366063,1751560240757,-460.0,0.00017808,2]
[369366065,1751560240766,-460.0,0.00017808,2]
[369366067,1751560240776,-460.0,0.00017808,2]
[369366069,1751560240785,-484.46,0.00017808,2]
[369366071,1751560240795,-349.64379874,0.00017808,2]
[369366073,1751560240804,-567.45,0.00017808,2]
[369366075,1751560240814,-460.0,0.00017808,2]
[369366077,1751560240823,-332.65,0.00018082,2]
[369366079,1751560240833,-460.0,0.00018082,2]
[369366081,1751560240842,-460.0,0.00018082,2]
[369366084,1751560240852,-502.38,0.00018082,2]
[369366086,1751560240861,-460.0,0.00018082,2]
[369366088,1751560240871,-460.0,0.00018082,2]
[369366090,1751560240881,-460.0,0.00018082,2]
[369366093,1751560240890,-460.0,0.00018082,2]
[369366094,1751560240900,-460.0,0.00018082,2]
[369366096,1751560240909,-484.46,0.00018082,2]
[369366099,1751560240923,-460.0,0.00018082,2]
[369366101,1751560240933,-6713.76933574,0.00018114,2]
[369366104,1751560240942,-250.0,0.00018265,2]
[369366108,1751560240951,-250.0,0.00018307,2]
[369366111,1751560240960,-250.0,0.00018348,2]
[369366113,1751560240970,-213.52,0.00018356,2]
[369366116,1751560240979,-460.0,0.00018356,2]
[369366119,1751560240988,-502.38,0.00018356,2]
[369366123,1751560240999,-460.0,0.00018356,2]
[369366126,1751560241008,-460.0,0.00018356,2]
[369366129,1751560241021,-460.0,0.00018356,2]
[369366131,1751560241031,-460.0,0.00018356,2]
[369366134,1751560241040,-460.0,0.00018356,2]
[369366138,1751560241050,-484.46,0.00018356,2]
[369366141,1751560241062,-460.0,0.00018356,2]
[369366144,1751560241071,-250.0,0.0001839,2]
[369366147,1751560241080,-160.0,0.00018391,2]
[369366151,1751560241090,-230.37558374,0.00018391,2]
[369366154,1751560241099,-215.07701991,0.00018391,2]
[369366157,1751560241109,-160.0,0.00018391,2]
[369366160,1751560241118,-12575.98004106,0.00018391,2]
[369366161,1751560241127,-160.0,0.00018391,2]
[369366165,1751560241137,-160.0,0.00018391,2]
[369366169,1751560241147,-837.389109,0.00018391,2]
[369366171,1751560241156,-847.79783075,0.00018391,2]
[369366173,1751560241165,-160.0,0.00018391,2]
[369366176,1751560241175,-213.94585247,0.00018391,2]
[369366180,1751560241184,-160.0,0.00018391,2]
[369366183,1751560241193,-250.0,0.00018432,2]
[369366185,1751560241202,-250.0,0.00018474,2]
[369366188,1751560241211,-250.0,0.00018516,2]
[369366191,1751560241221,-250.0,0.00018557,2]
[369366194,1751560241230,-250.0,0.00018599,2]
[369366197,1751560241239,-460.0,0.0001863,2]
[369366200,1751560241248,-502.38,0.0001863,2]
[369366203,1751560241258,-460.0,0.0001863,2]
[369366206,1751560241267,-460.0,0.0001863,2]
[369366209,1751560241277,-460.0,0.0001863,2]
[369366212,1751560241287,-197.69013963,0.0001863,2]
[369366214,1751560241297,-460.0,0.0001863,2]
[369366216,1751560241306,-484.46,0.0001863,2]
[369366218,1751560241315,-460.0,0.0001863,2]
[369366221,1751560241325,-250.0,0.00018641,2]
[369366224,1751560241335,-250.0,0.00018683,2]
[369366227,1751560241347,-200.20959778,0.00018694,2]
[369366230,1751560241356,-250.0,0.00018725,2]
[369366233,1751560241365,-250.0,0.00018766,2]
[369366236,1751560241374,-250.0,0.00018808,2]
[369366239,1751560241383,-250.0,0.0001885,2]
[369366242,1751560241392,-343.9367837,0.00018891,2]
[369366245,1751560241402,-250.0,0.00018892,2]
[369366248,1751560241413,-460.0,0.00018904,2]
[369366251,1751560241422,-502.38,0.00018904,2]
[369366254,1751560241431,-460.0,0.00018904,2]
[369366257,1751560241441,-460.0,0.00018904,2]
[369366260,1751560241451,-460.0,0.00018904,2]
[369366263,1751560241461,-460.0,0.00018904,2]
[369366266,1751560241471,-484.46,0.00018904,2]
[369366269,1751560241480,-460.0,0.00018904,2]
[369366272,1751560241490,-250.0,0.00018934,2]
[369366276,1751560241499,-250.0,0.00018975,2]
[369366279,1751560241508,-250.0,0.00019017,2]
[369366282,1751560241518,-250.0,0.00019059,2]
[369366284,1751560241527,-502.38,0.00019178,2]
[369366287,1751560241535,-460.0,0.00019178,2]
[369366290,1751560241544,-460.0,0.00019178,2]
[369366293,1751560241554,-460.0,0.00019178,2]
[369366296,1751560241564,-460.0,0.00019178,2]
[369366299,1751560241573,-460.0,0.00019178,2]
[369366337,1751560241740,-484.46,0.00019178,2]
[369366340,1751560241750,-460.0,0.00019178,2]
[369366343,1751560241760,-666.0,0.00019178,2]
[369366346,1751560241770,-668.058605,0.00019178,2]
[369366349,1751560241779,-502.38,0.00019452,2]
[369366352,1751560241788,-460.0,0.00019452,2]
[369366355,1751560241798,-460.0,0.00019452,2]
[369366358,1751560241807,-572.83211419,0.00019452,2]
[369366361,1751560241817,-460.0,0.00019452,2]
[369366364,1751560241826,-460.0,0.00019452,2]
[369366367,1751560241835,-484.46,0.00019452,2]
[369366370,1751560241844,-460.0,0.00019452,2]
[369366373,1751560241853,-502.38,0.00019726,2]
[369366376,1751560241863,-460.0,0.00019726,2]
[369366378,1751560241873,-460.0,0.00019726,2]
[369366380,1751560241882,-460.0,0.00019726,2]
[369366382,1751560241891,-460.0,0.00019726,2]
[369366384,1751560241900,-484.46,0.00019726,2]
[369366386,1751560241908,-460.0,0.00019726,2]
[369366388,1751560241918,-200.20959778,0.00019872,2]
[369366389,1751560241927,-150.0,0.00019899,2]
[369366391,1751560241936,-150.0,0.00019899,2]
[369366393,1751560241945,-150.0,0.00019899,2]
[369366396,1751560241954,-150.0,0.00019899,2]
[369366398,1751560241964,-150.0,0.00019899,2]
[369366399,1751560241974,-250.0,0.00019899,2]
[369366402,1751560241984,-502.38,0.0002,2]
[369366404,1751560241994,-546.12578425,0.0002,2]
[369366405,1751560242004,-460.0,0.0002,2]
[369366408,1751560242015,-173.19466763,0.0002,2]
[369366409,1751560242024,-460.0,0.0002,2]
[369366411,1751560242033,-484.46,0.0002,2]
[369366413,1751560242043,-12500.0,0.0002,2]
[369366416,1751560242053,-460.0,0.0002,2]
[369366418,1751560242063,-254.931494,0.00020187,2]
[369366419,1751560242072,-192.5,0.00020192,2]
[369366421,1751560242082,-2151.0,0.00020197,2]
[369366423,1751560242092,-646.0,0.00020197,2]
[369366425,1751560242102,-406.0,0.00020197,2]
[369366427,1751560242111,-966.0,0.00020197,2]
[369366429,1751560242120,-502.38,0.00020273,2]
[369366431,1751560242130,-460.0,0.00020273,2]
[369366433,1751560242139,-299.40152621,0.00020273,2]
[369366435,1751560242148,-484.46,0.00020273,2]
[369366437,1751560242158,-460.0,0.00020273,2]
[369366439,1751560242167,-502.38,0.00020547,2]
[369366441,1751560242176,-460.0,0.00020547,2]
[369366443,1751560242186,-484.46,0.00020547,2]
[369366445,1751560242195,-182.57057547,0.00020547,2]
[369366447,1751560242204,-5094.47,0.000206,2]
[369366449,1751560242214,-26868.4947292,0.0002066,2]
[369366451,1751560242223,-168.0,0.00020673,2]
[369366453,1751560242232,-502.38,0.00020821,2]
[369366455,1751560242241,-420.43103218,0.00020821,2]
[369366457,1751560242251,-484.46,0.00020821,2]
[369366459,1751560242260,-168.0,0.00020829,2]
[369366461,1751560242269,-347.0,0.0002083,2]
[369366463,1751560242279,-168.0,0.00020833,2]
[369366465,1751560242288,-347.0,0.00020849,2]
[369366467,1751560242298,-347.0,0.00020905,2]
[369366469,1751560242308,-906.0,0.00020911,2]
[369366471,1751560242318,-35990.58361634,0.00020922,2]
[369366473,1751560242327,-100000.0,0.0002099,2]
[369366475,1751560242336,-168.0,0.00021022,2]
[369366477,1751560242345,-200.20959778,0.0002105,2]
[369366479,1751560242354,-168.0,0.00021068,2]
[369366481,1751560242364,-502.38,0.00021095,2]
[369366483,1751560242374,-484.46,0.00021095,2]
[369366485,1751560242383,-502.38,0.00021369,2]
[369366487,1751560242392,-484.46,0.00021369,2]
[369366489,1751560242401,-177.6570982,0.0002137,2]
[369366491,1751560242411,-177.6570982,0.0002137,2]
[369366493,1751560242420,-177.6570982,0.0002137,2]
[369366495,1751560242428,-906.0,0.000214,2]
[369366497,1751560242438,-12499.28228531,0.000215,2]
[369366499,1751560242447,-2000.0,0.000216,2]
[369366501,1751560242457,-502.38,0.00021643,2]
[369366503,1751560242466,-484.46,0.00021643,2]
[369366505,1751560242475,-178.2434255,0.00021781,2]
[369366507,1751560242485,-2600.31911448,0.00021903,2]
[369366509,1751560242494,-500.0,0.00021917,2]
[369366511,1751560242503,-500.0,0.00021917,2]
[369366513,1751560242512,-500.0,0.00021917,2]
[369366515,1751560242521,-500.0,0.00021917,2]
[369366517,1751560242531,-172.55160403,0.00021917,2]
[369366519,1751560242541,-502.38,0.00021917,2]
[369366521,1751560242549,-484.46,0.00021917,2]
[369366523,1751560242559,-500.0,0.00021917,2]
[369366525,1751560242568,-500.0,0.00021917,2]
[369366527,1751560242579,-500.0,0.00021917,2]
[369366529,1751560242589,-500.0,0.00021917,2]
[369366531,1751560242598,-500.0,0.00021917,2]
[369366533,1751560242608,-500.0,0.00021917,2]
[369366534,1751560242617,-500.0,0.00021917,2]
[369366536,1751560242627,-500.0,0.00021917,2]
[369366538,1751560242637,-500.0,0.00021917,2]
[369366541,1751560242646,-500.0,0.00021917,2]
[369366542,1751560242655,-500.0,0.00021917,2]
[369366544,1751560242665,-500.0,0.00021917,2]
[369366546,1751560242674,-411.53573301,0.00021917,2]
[369366548,1751560242683,-1143.53127536,0.00021918,2]
[369366550,1751560242693,-150.0,0.00021918,2]
[369366552,1751560242702,-404.75818205,0.00021918,7]
[369366554,1751560242711,-3722.69409521,0.0002199,2]
[369366556,1751560242721,-51230.65,0.00022,7]
[369366558,1751560242730,-213.94585247,0.00022,7]
[369366560,1751560242739,-160.0,0.00022,7]
[369366562,1751560242750,-5206.8,0.00022,7]
[369366564,1751560242759,-37880.31923811,0.00022,2]
[369366566,1751560242768,-279.99371442,0.00022,2]
[369366568,1751560242778,-352.03927373,0.00022,2]
[369366570,1751560242788,-10797.62247831,0.00022,2]
[369366572,1751560242798,-10114.94457567,0.00022,2]
[369366574,1751560242808,-25170.95186803,0.00022,2]
[369366577,1751560242824,-1055.60704147,0.00022,2]
[369366579,1751560242836,-2043.59729491,0.00022,2]
[369366581,1751560242849,-261.50949469,0.00022,2]
[369366583,1751560242859,-847.79783075,0.00022,7]
[369366585,1751560242869,-161.51568272,0.00022,2]
[369366587,1751560242878,-379.920874,0.0002204,4]
[369366589,1751560242887,-168.0,0.00022041,2]
[369366591,1751560242897,-2464.4195036,0.00022061,2]
[369366593,1751560242909,-135.89961088,0.00022061,2]
[369366595,1751560242918,-502.38,0.00022191,2]
[369366597,1751560242928,-484.46,0.00022191,2]
[369366598,1751560242939,-156.5140099,0.00022192,2]
[369366600,1751560242948,-174.5860814,0.00022192,2]
[369366602,1751560242958,-177.6570982,0.00022192,2]
[369366604,1751560242967,-177.6570982,0.00022192,2]
[369366606,1751560242977,-3431.52386177,0.000222,7]
[369366609,1751560242988,-1662.94613823,0.000222,7]
[369366610,1751560242999,-200.0,0.0002222,5]
[369366612,1751560243008,-200.20959778,0.00022228,2]
[369366614,1751560243021,-460.0,0.00022264,2]
[369366616,1751560243031,-444.91,0.00022264,2]
[369366618,1751560243040,-460.0,0.00022264,2]
[369366620,1751560243049,-194.10010843,0.00022264,2]
[369366622,1751560243061,-265.89989157,0.00022264,2]
[369366624,1751560243070,-171.63031309,0.00022264,2]
[369366627,1751560243082,-288.36968691,0.00022264,2]
[369366628,1751560243092,-555.48,0.00022264,2]
[369366630,1751560243101,-460.0,0.00022264,2]
[369366632,1751560243110,-161.94573936,0.00022265,2]
[369366634,1751560243121,-3393.27706792,0.00022265,2]
[369366637,1751560243132,-5204.60121575,0.00022265,2]
[369366638,1751560243141,-6807.3334433,0.00022265,2]
[369366641,1751560243152,-8294.91511087,0.00022265,2]
[369366642,1751560243161,-1019.14977713,0.00022266,2]
[369366644,1751560243173,-1581.16933736,0.00022266,2]
[369366645,1751560243182,-151.0,0.000223,6]
[369366646,1751560243192,-1239.0,0.00022319,15]
[369366647,1751560243201,-716.85773003,0.00022355,2]
[369366648,1751560243210,-170.20009005,0.00022373,2]
[369366649,1751560243221,-2000.0,0.000224,2]
[369366650,1751560243230,-150.0,0.000224,5]
[369366651,1751560243238,-2000.0,0.000224,2]
[369366652,1751560243248,-2000.0,0.000224,2]
[369366653,1751560243257,-170.20009005,0.00022437,2]
[369366654,1751560243267,-502.38,0.00022465,2]
[369366655,1751560243276,-484.46,0.00022465,2]
[369366656,1751560243286,-500.0,0.00022473,2]
[369366657,1751560243295,-500.0,0.00022473,2]
[369366658,1751560243304,-500.0,0.00022473,2]
[369366660,1751560243313,-567.10239571,0.00022473,2]
[369366661,1751560243322,-333.6603568,0.00022473,2]
[369366707,1751560243858,-108.43286899,0.00022473,2]
[369366709,1751560243868,-500.0,0.00022473,2]
[369366711,1751560243877,-500.0,0.00022473,2]
[369366713,1751560243886,-500.0,0.00022473,2]
[369366715,1751560243895,-500.0,0.00022473,2]
[369366717,1751560243905,-553.43519719,0.00022473,2]
[369366719,1751560243914,-508.64317443,0.00022473,2]
[369366721,1751560243923,-500.0,0.00022473,2]
[369366724,1751560243933,-500.0,0.00022473,2]
[369366726,1751560243942,-500.0,0.00022473,2]
[369366728,1751560243951,-293.45627482,0.00022489,2]
[369366730,1751560243960,-500.0,0.00022489,10]
[369366732,1751560243970,-533.9326555,0.0002249,7]
[369375543,1751560434051,229.438344,0.00013699,2]
[369375546,1751560531268,200.0,0.00026997,120]
[369375549,1751560715406,221.189323,0.00014907,2]
[369375551,1751560891883,200.0,0.00025969,120]
[369375553,1751560951104,200.0,0.00027119,120]
[369375554,1751561119238,1000.0,0.00027,120]
[369375555,1751561220855,-257.63913128,0.00015235,2]
[369375557,1751561244148,-632.49810601,0.00015235,2]
[369375558,1751561322263,-165.55707408,0.00015135,2]
[369375559,1751561323893,-45.77273195,0.00015135,2]
[369375560,1751561330137,165.55707408,0.0001501,2]
[369375561,1751561371857,200.0,0.00026007,120]
[369375567,1751561422507,200.0,0.00027,120]
[369375628,1751561432501,-258.98136524,0.00015233,2]
[369375629,1751561432514,-41.01863476,0.00015233,2]
[369375630,1751561432524,-300.0,0.00015233,2]
[369375631,1751561432534,-286.0,0.00015233,2]
[369375632,1751561432544,-300.0,0.00015233,2]
[369375633,1751561432553,-500.0,0.00015234,2]
[369375634,1751561432562,-500.0,0.00015234,2]
[369375635,1751561432571,-371.62213115,0.00015234,2]
[369375636,1751561432582,-128.37786885,0.00015234,2]
[369375637,1751561432591,-500.0,0.00015234,2]
[369375638,1751561432601,-66.62717499,0.00015234,2]
[369375639,1751561432629,-500.0,0.00015234,2]
[369375640,1751561432639,-500.0,0.00015234,2]
[369375641,1751561432650,-500.0,0.00015234,2]
[369375642,1751561432659,-500.0,0.00015234,2]
[369375643,1751561432669,-500.0,0.00015234,2]
[369375644,1751561432679,-500.0,0.00015234,2]
[369375645,1751561432688,-500.0,0.00015234,2]
[369375646,1751561432697,-500.0,0.00015234,2]
[369375647,1751561432707,-308.34691618,0.00015234,2]
[369375648,1751561432716,-500.0,0.00015234,2]
[369375649,1751561432726,-21696.07890233,0.00015235,2]
[369375650,1751561432739,-2313.78386038,0.00015235,2]
[369375651,1751561432750,-242.9949982,0.00015619,2]
[369375652,1751561432760,-1200.0,0.00015635,2]
[369375653,1751561432770,-257.63913128,0.00016338,2]
[369375654,1751561432781,-151.0,0.00016428,2]
[369375655,1751561432790,-151.0,0.00016428,2]
[369375656,1751561432800,-151.0,0.00016428,2]
[369375657,1751561432809,-151.0,0.00016428,2]
[369375658,1751561432818,-151.0,0.00016428,2]
[369375659,1751561432827,-151.0,0.00016428,2]
[369375660,1751561432837,-151.0,0.00016428,2]
[369375661,1751561432846,-151.0,0.00016428,2]
[369375662,1751561432855,-151.0,0.00016428,2]
[369375663,1751561432865,-151.0,0.00016428,2]
[369375664,1751561432874,-151.0,0.00016428,2]
[369375665,1751561432884,-151.0,0.00016428,2]
[369375666,1751561432893,-343.9367837,0.00016437,2]
[369375667,1751561432902,-460.0,0.00016438,2]
[369375668,1751561432911,-460.0,0.00016438,2]
[369375669,1751561432920,-569.68011724,0.00016438,2]
[369375670,1751561432929,-460.0,0.00016438,2]
[369375671,1751561432938,-460.0,0.00016438,2]
[369375672,1751561432947,-460.0,0.00016438,2]
[369375673,1751561432956,-389.29355504,0.00016438,2]
[369375674,1751561432965,-460.0,0.00016438,2]
[369375675,1751561432975,-300.0,0.00016438,2]
[369375676,1751561432984,-460.0,0.00016438,2]
[369375677,1751561432993,-460.0,0.00016438,2]
[369375678,1751561433002,-460.0,0.00016438,2]
[369375679,1751561433012,-460.0,0.00016438,2]
[369375680,1751561433021,-460.0,0.00016438,2]
[369375681,1751561433032,-460.0,0.00016438,2]
[369375682,1751561433042,-460.0,0.00016438,2]
[369375683,1751561433051,-460.0,0.00016438,2]
[369375684,1751561433061,-460.0,0.00016438,2]
[369375685,1751561433071,-460.0,0.00016438,2]
[369375686,1751561433081,-460.0,0.00016438,2]
[369375687,1751561433090,-460.0,0.00016438,2]
[369375688,1751561433100,-304.75482169,0.00016438,2]
[369375689,1751561433109,-460.0,0.00016438,2]
[369375690,1751561433119,-460.0,0.00016438,2]
[369375691,1751561433128,-460.0,0.00016438,2]
[369375692,1751561433137,-460.0,0.00016438,2]
[369375693,1751561433297,-460.0,0.00016438,2]
[369375694,1751561433306,-460.0,0.00016438,2]
[369375695,1751561433316,-560.66925553,0.00016438,2]
[369375696,1751561433325,-460.0,0.00016438,2]
[369375697,1751561433334,-460.0,0.00016438,2]
[369375698,1751561433344,-460.0,0.00016438,2]
[369375699,1751561433355,-460.0,0.00016438,2]
[369375700,1751561433367,-460.0,0.00016438,2]
[369375701,1751561433377,-460.0,0.00016438,2]
[369375702,1751561433387,-460.0,0.00016438,2]
[369375703,1751561433397,-460.0,0.00016438,2]
[369375704,1751561433407,-460.0,0.00016438,2]
[369375705,1751561433415,-460.0,0.00016438,2]
[369375706,1751561433423,-460.0,0.00016438,2]